bitfinex/quotes_ETHUSD_20220109
["timestamp","ask_amount","ask_price","bid_price","bid_amount"]
[1641752481393,0.0009,3173.7,3173.6,2.52721137]
[1641752481595,0.0009,3173.7,3173.6,1.00170527]
[1641752481794,0.0009,3173.7,3173.6,1.78939527]
[1641752481995,0.0009,3173.7,3173.6,0.78939527]
[1641752482894,1.54655917,3173.7,3173.6,0.78939527]
[1641752483094,1.54655917,3173.7,3173.6,1.57706637]
[1641752483941,4.22915682,3173.7,3173.6,1.57706637]
[1641752484140,4.22915682,3173.7,3173.6,0.78939527]
[1641752485541,4.22915682,3173.7,3173.6,0.00170527]
[1641752485942,4.22915682,3173.7,3173.4,0.00284211]
[1641752486141,4.22915682,3173.7,3172.7,0.30682108]
[1641752486342,4.22915682,3173.7,3173.4,0.00284211]
[1641752486542,4.22915682,3173.7,3172.8,0.00625265]
[1641752486543,1.39789994,3173.2,3172.8,0.00625265]
[1641752486742,1.39789994,3173.2,3173.1,0.00454738]
[1641752486942,1.39789994,3173.2,3172.8,0.00625265]
[1641752487142,1.39789994,3173.2,3172.6,0.0073895]
[1641752487598,1.18973645,3173.1,3172.6,0.0073895]
[1641752487798,1.18973645,3173.1,3172.6,0.7953795]
[1641752488195,1.18973645,3173.1,3172.7,0.00682108]
[1641752488695,1.18973645,3173.1,3172.6,0.0073895]
[1641752489094,1.18973645,3173.1,3172.8,0.78794]
[1641752489595,1.18973645,3173.1,3172.9,0.00568423]
[1641752490004,1.18973645,3173.1,3172.6,0.0073895]
[1641752490194,1.18973645,3173.1,3172.9,1.5757935]
[1641752490593,1.18973645,3173.1,3173.0,0.00511581]
[1641752490794,1.27516232,3173.7,3173.0,0.00511581]
[1641752491249,1.27516232,3173.7,3173.0,0.79293971]
[1641752491450,2.68296064,3173.6,3173.1,0.78783]
[1641752491650,1.30689017,3173.4,3173.1,0.79237738]
[1641752491850,1.30689017,3173.4,3173.2,0.00397896]
[1641752491851,1.4370147,3173.3,3173.2,0.00397896]
[1641752492253,1.4370147,3173.3,3172.9,0.00568423]
[1641752492753,6.77458856,3173.3,3172.9,0.00568423]
[1641752492954,2.6581523,3173.2,3172.9,0.79360423]
[1641752493151,2.6581523,3173.2,3172.9,0.78792]
[1641752493350,2.6581523,3173.2,3173.0,0.00511581]
[1641752493553,6.79833391,3173.3,3173.0,0.00511581]
[1641752493751,2.68296064,3173.1,3173.0,0.00511581]
[1641752493953,2.68296064,3173.1,3172.8,0.00625265]
[1641752494353,1.28845004,3172.9,3172.8,0.00625265]
[1641752494552,1.23845004,3172.9,3172.8,0.00625265]
[1641752494756,2.68296064,3173.2,3172.8,0.00625265]
[1641752495002,1.4370147,3173.3,3173.0,0.78793]
[1641752495396,1.4370147,3173.3,3173.1,0.00454738]
[1641752495795,1.17478551,3173.2,3173.1,0.00454738]
[1641752495996,1.4370147,3173.3,3173.1,0.00454738]
[1641752496198,2.67266854,3173.2,3173.1,0.79243738]
[1641752497897,1.49791418,3173.5,3173.1,0.79243738]
[1641752498297,1.49791418,3173.5,3173.2,0.00397896]
[1641752499748,1.61664165,3173.4,3173.2,0.00397896]
[1641752499948,0.07878,3173.3,3173.0,0.00511581]
[1641752500149,0.07878,3173.3,3172.6,0.0073895]
[1641752500347,0.07878,3173.3,3172.1,0.01023162]
[1641752500548,1.26544927,3172.5,3172.1,0.01023162]
[1641752500757,2.27074927,3172.5,3172.1,0.01023162]
[1641752501351,1.21149408,3172.4,3172.1,0.01023162]
[1641752502152,1.21149408,3172.4,3171.7,2.41525381]
[1641752502602,1.21149408,3172.4,3171.8,0.01193689]
[1641752502994,1.24795076,3171.9,3171.8,0.80006689]
[1641752503193,1.26544927,3172.5,3171.8,0.80006689]
[1641752503398,1.26544927,3172.5,3171.8,1.10006689]
[1641752503594,1.26544927,3172.5,3171.9,0.01136847]
[1641752503892,1.26544927,3172.5,3171.8,0.01193689]
[1641752505094,1.27590242,3172.4,3171.8,0.01193689]
[1641752505694,1.27590242,3172.4,3171.8,1.02874992]
[1641752506094,1.27590242,3172.4,3171.9,0.01136847]
[1641752506549,1.27590242,3172.4,3171.9,0.79946847]
[1641752506746,1.27590242,3172.4,3171.9,0.01136847]
[1641752506947,1.27590242,3172.4,3172.0,0.01080004]
[1641752507147,1.27590242,3172.4,3171.9,0.01136847]
[1641752508250,1.27590242,3172.4,3171.8,0.01193689]
[1641752508454,1.35471242,3172.4,3171.8,0.01193689]
[1641752508650,1.03009232,3172.0,3171.7,0.01250531]
[1641752508851,1.39867596,3171.9,3171.7,0.01250531]
[1641752509452,1.39867596,3171.9,3171.5,0.01364216]
[1641752509653,1.39867596,3171.9,3171.4,0.01421058]
[1641752509654,4.07127648,3171.9,3171.4,0.01421058]
[1641752509999,4.0377154,3171.9,3171.3,0.01477901]
[1641752510594,7.2377154,3171.9,3171.1,0.01591585]
[1641752510796,1.24552179,3171.5,3171.1,0.01591585]
[1641752510997,1.42425507,3171.4,3171.1,0.01591585]
[1641752511195,1.42425507,3171.4,3171.0,0.01648428]
[1641752512599,1.42425507,3171.4,3170.9,0.0170527]
[1641752513747,1.42425507,3171.4,3171.0,0.08027422]
[1641752513948,1.42425507,3171.4,3171.2,0.78816]
[1641752514148,1.42425507,3171.4,3171.2,1.5762946]
[1641752514347,1.42425507,3171.4,3171.3,8.01477901]
[1641752514548,1.42425507,3171.4,3171.3,9.10484995]
[1641752514746,1.42425507,3171.4,3171.3,10.10484995]
[1641752515147,1.42425507,3171.4,3171.3,2.40484995]
[1641752515949,1.42425507,3171.4,3171.3,2.10484995]
[1641752516151,1.42425507,3171.4,3171.3,1.10484995]
[1641752516950,1.29909975,3171.4,3171.3,2.10484995]
[1641752517695,1.29909975,3171.4,3171.3,1.10484995]
[1641752517894,1.29909975,3171.4,3171.3,2.10484995]
[1641752518094,1.29909975,3171.4,3171.3,1.10484995]
[1641752518295,1.29909975,3171.4,3171.3,2.10484995]
[1641752518699,1.29909975,3171.4,3171.3,1.10484995]
[1641752519097,1.29909975,3171.4,3171.3,2.10484995]
[1641752519398,1.29909975,3171.4,3171.3,1.10484995]
[1641752519698,1.29909975,3171.4,3171.3,2.70484995]
[1641752519898,1.29909975,3171.4,3171.3,1.70484995]
[1641752520501,0.91845261,3171.4,3171.3,11.65484995]
[1641752520901,0.91845261,3171.4,3171.3,12.35484995]
[1641752521102,0.91845261,3171.4,3171.3,2.70484995]
[1641752521744,0.91845261,3171.4,3171.3,6.00484995]
[1641752523146,3.20297475,3171.9,3171.6,0.78816]
[1641752523346,3.20297475,3171.9,3171.6,1.5763132]
[1641752523547,3.20297475,3171.9,3171.7,0.01250531]
[1641752523951,3.20297475,3171.9,3171.4,0.01421058]
[1641752524147,1.38209198,3171.8,3171.6,0.01307374]
[1641752524347,1.38209198,3171.8,3171.4,0.01421058]
[1641752524548,1.38209198,3171.8,3171.2,0.01534743]
[1641752524748,1.38209198,3171.8,3171.5,0.78819]
[1641752525013,1.38209198,3171.8,3171.5,2.11275352]
[1641752525203,1.38209198,3171.8,3171.6,0.01307374]
[1641752525802,1.38209198,3171.8,3171.7,0.78817]
[1641752526004,1.38209198,3171.8,3171.7,1.08817]
[1641752526204,1.38209198,3171.8,3171.7,0.80067531]
[1641752526607,1.38209198,3171.8,3171.7,0.01250531]
[1641752527904,1.363169,3171.7,3171.4,0.01421058]
[1641752528105,1.363169,3171.7,3171.2,0.01534743]
[1641752528305,1.363169,3171.7,3171.3,0.7882691]
[1641752528504,1.363169,3171.7,3171.2,0.01534743]
[1641752528748,1.363169,3171.7,3171.4,0.01421058]
[1641752528950,1.363169,3171.7,3171.2,1.01534743]
[1641752529253,1.38209198,3171.8,3171.3,0.01477901]
[1641752529450,1.38209198,3171.8,3171.4,0.7882394]
[1641752529650,1.38209198,3171.8,3171.2,0.01534743]
[1641752529849,1.38209198,3171.8,3171.5,0.01364216]
[1641752530049,1.38209198,3171.8,3171.2,0.01534743]
[1641752530249,1.38209198,3171.8,3171.4,1.07213789]
[1641752530449,1.38209198,3171.8,3171.4,1.05792731]
[1641752530650,1.38209198,3171.8,3171.5,0.31364216]
[1641752530857,1.38209198,3171.8,3171.5,1.10183216]
[1641752531059,1.38209198,3171.8,3171.6,0.01307374]
[1641752531758,1.38209198,3171.8,3171.6,0.80125454]
[1641752532153,1.38209198,3171.8,3171.7,0.01250531]
[1641752532802,3.2515,3172.3,3171.7,0.01250531]
[1641752533000,3.6947,3172.4,3171.7,0.01250531]
[1641752533199,3.6947,3172.4,3171.6,3.16552544]
[1641752533401,0.07881,3172.8,3171.7,1.01250531]
[1641752533799,0.07881,3172.8,3171.8,0.01193689]
[1641752533800,1.5021723,3172.1,3171.8,0.01193689]
[1641752534303,1.5021723,3172.1,3171.7,0.01250531]
[1641752534701,1.37755119,3172.5,3171.8,1.576271]
[1641752534904,0.07881,3172.6,3171.9,1.64218835]
[1641752535103,0.00297475,3172.9,3171.9,2.65355682]
[1641752535301,0.00297475,3172.9,3172.0,0.01080004]
[1641752535701,0.00297475,3172.9,3172.0,1.01080004]
[1641752536101,0.00297475,3172.9,3172.1,0.01023162]
[1641752536350,1.3503301,3172.6,3172.1,0.01023162]
[1641752536550,1.3503301,3172.6,3172.3,1.57586]
[1641752536752,1.3503301,3172.6,3172.3,2.3638008]
[1641752536951,1.3503301,3172.6,3172.4,0.79648635]
[1641752537149,2.68359071,3173.0,3172.4,2.21356916]
[1641752537350,2.68359071,3173.0,3172.5,0.00795792]
[1641752538451,1.41035516,3172.7,3172.6,0.78794]
[1641752538952,1.41035516,3172.7,3172.6,1.5832648]
[1641752540014,1.41035516,3172.7,3172.6,4.7832648]
[1641752541102,1.41496034,3173.1,3172.6,4.7832648]
[1641752541503,1.41496034,3173.1,3172.7,0.00682108]
[1641752542112,1.26733551,3172.8,3172.7,0.00682108]
[1641752542903,3.95078673,3172.8,3172.7,0.00682108]
[1641752544855,2.68345122,3172.8,3172.7,0.00682108]
[1641752545658,2.68345122,3173.2,3172.7,0.00682108]
[1641752545858,1.5198251,3173.1,3172.7,0.00682108]
[1641752546258,1.5198251,3173.1,3172.8,0.7879203]
[1641752546458,2.68345122,3173.2,3172.7,0.00682108]
[1641752546662,2.68345122,3173.2,3172.9,0.00568423]
[1641752546862,2.68345122,3173.2,3172.7,1.46282108]
[1641752547059,2.68345122,3173.0,3172.8,0.00625265]
[1641752547514,2.68345122,3173.0,3172.8,1.18570862]
[1641752547697,1.19548232,3173.5,3172.9,2.3634504]
[1641752547698,2.54085603,3173.5,3172.9,2.3634504]
[1641752547899,2.54085603,3173.5,3173.1,0.78777]
[1641752547900,1.34537371,3173.5,3173.1,0.78777]
[1641752548199,1.34537371,3173.5,3173.2,0.00397896]
[1641752548999,2.68306114,3173.4,3173.2,0.00397896]
[1641752550498,2.68306114,3173.4,3172.9,0.00568423]
[1641752550697,2.68306114,3173.4,3172.6,6.3515311]
[1641752550698,2.68306114,3173.4,3172.7,0.00682108]
[1641752551352,1.03468185,3173.1,3172.7,0.00682108]
[1641752551551,1.16750174,3173.0,3172.7,0.00682108]
[1641752552151,3.85056288,3173.0,3172.7,0.00682108]
[1641752552852,3.85056288,3173.0,3172.8,0.7879171]
[1641752553253,3.85056288,3173.0,3172.9,0.00568423]
[1641752553254,1.16750174,3173.0,3172.9,0.00568423]
[1641752553954,0.07878,3173.6,3172.9,0.00568423]
[1641752554154,1.08083829,3173.4,3172.9,0.00568423]
[1641752555200,2.68339401,3173.3,3172.9,0.00568423]
[1641752555396,2.68339401,3173.3,3172.8,0.79419155]
[1641752555597,2.68339401,3173.3,3172.9,0.00568423]
[1641752556199,1.46609744,3173.2,3172.9,0.00568423]
[1641752556897,1.46609744,3173.2,3172.8,0.00625265]
[1641752557099,3.09704812,3173.1,3172.8,0.00625265]
[1641752557298,3.09704812,3173.1,3172.7,0.00682108]
[1641752557299,6.68054213,3173.1,3172.7,0.00682108]
[1641752557499,6.98054213,3173.1,3172.7,0.00682108]
[1641752557704,3.96227401,3173.1,3172.7,0.00682108]
[1641752557998,0.7881768,3173.0,3172.7,0.00682108]
[1641752558200,0.07878,3172.9,3172.7,0.00682108]
[1641752558399,5.85,3172.8,3172.6,0.34396274]
[1641752558751,5.85,3172.8,3171.4,1.1832]
[1641752558752,3.25,3172.6,3171.4,1.1832]
[1641752558951,0.07881,3172.5,3171.4,1.1832]
[1641752559152,0.07881,3172.5,3171.5,0.00682108]
[1641752559551,3.07356605,3172.5,3171.5,0.00682108]
[1641752559951,1.21688863,3171.7,3171.5,0.00682108]
[1641752560753,1.21688863,3171.7,3171.5,3.20682108]
[1641752561153,1.21688863,3171.7,3171.6,0.00625266]
[1641752561555,0.21688863,3171.7,3171.6,0.00625266]
[1641752564212,1.16048331,3171.8,3171.7,0.78311137]
[1641752564213,8.06048331,3171.8,3171.7,0.78311137]
[1641752564711,8.06048331,3171.8,3171.7,0.7887956]
[1641752565511,9.59058549,3171.8,3171.7,0.7887956]
[1641752565910,6.16362274,3171.8,3171.7,0.7887956]
[1641752566560,6.07124554,3171.8,3171.7,0.7887956]
[1641752567565,5.28279554,3171.8,3171.7,0.7887956]
[1641752568561,5.28279554,3171.8,3171.7,0.7257956]
[1641752570903,2.59820829,3171.8,3171.7,0.7257956]
[1641752571902,1.53010218,3171.8,3171.7,0.7257956]
[1641752578800,1.10229598,3171.7,3171.5,3.2]
[1641752584050,1.10229598,3171.7,3171.5,0.82792923]
[1641752584051,21.94785738,3171.7,3171.5,0.82792923]
[1641752584349,18.48,3171.6,3171.5,0.82792923]
[1641752584751,18.48,3171.6,3171.5,0.82906608]
[1641752586400,21.16484489,3171.6,3171.5,0.82906608]
[1641752586997,21.24366489,3171.6,3171.5,0.82906608]
[1641752587199,21.24366489,3171.6,3171.5,0.72720921]
[1641752587400,21.24366489,3171.6,3170.2,1.1753]
[1641752587401,19.2686565,3171.2,3170.2,1.1753]
[1641752587598,3.80974384,3171.1,3170.2,1.1753]
[1641752587799,0.07883,3171.0,3170.3,0.00682108]
[1641752588298,1.33907937,3170.4,3170.3,0.00682108]
[1641752588955,1.33907937,3170.4,3169.9,6.05609477]
[1641752589151,1.33907937,3170.4,3170.0,0.00852635]
[1641752590853,1.33907937,3170.4,3169.8,0.0096632]
[1641752591453,2.10587937,3170.4,3169.8,0.0096632]
[1641752591655,3.00872025,3170.3,3169.8,0.0096632]
[1641752592054,21.48872025,3170.3,3169.8,0.0096632]
[1641752592256,1.09463756,3170.2,3169.8,0.0096632]
[1641752592508,2.99498439,3170.1,3169.8,0.0096632]
[1641752592698,2.99498439,3170.1,3169.7,0.01023162]
[1641752593297,21.47498439,3170.1,3169.7,0.01023162]
[1641752593497,1.5779056,3170.0,3169.7,0.01023162]
[1641752593699,2.79842557,3169.9,3169.7,0.01023162]
[1641752594097,21.57842557,3169.9,3169.7,0.01023162]
[1641752594303,1.31975915,3169.8,3169.7,0.01023162]
[1641752594497,10.92886,3169.7,3169.5,0.1]
[1641752594706,19.57456,3169.7,3169.5,0.1]
[1641752595098,6.68971962,3169.6,3169.5,0.1]
[1641752595298,10.46857962,3169.6,3169.5,0.0596341]
[1641752595497,1.20364807,3168.8,3168.5,10.5136]
[1641752595697,1.93334807,3168.8,3168.5,16.6236]
[1641752595899,1.93334807,3168.8,3168.6,0.00625266]
[1641752596748,1.93334807,3168.8,3168.6,6.11625266]
[1641752597150,2.01222807,3168.8,3168.7,0.00568424]
[1641752598149,2.01222807,3168.8,3168.6,6.06568424]
[1641752598350,1.93334807,3168.8,3168.6,6.06568424]
[1641752598550,1.20364807,3168.8,3168.6,6.06568424]
[1641752599851,1.20364807,3168.8,3168.5,6.88]
[1641752600100,2.71488224,3168.7,3168.5,6.88]
[1641752600299,2.71488224,3168.7,3168.1,6.11]
[1641752600502,3.91147379,3168.8,3167.7,1.2249]
[1641752600698,3.91147379,3168.8,3168.2,0.00284211]
[1641752600699,4.01394994,3168.8,3168.2,0.00284211]
[1641752601500,2.61908664,3168.8,3168.2,0.00284211]
[1641752601699,1.48918049,3168.3,3168.2,0.00284211]
[1641752601899,2.8616588,3168.9,3167.9,0.00454738]
[1641752602103,0.07888,3168.9,3168.2,3.1]
[1641752602499,0.00297475,3168.8,3168.3,0.00227369]
[1641752603199,0.00297475,3168.8,3168.4,1.21552801]
[1641752603399,1.54145673,3168.5,3168.4,1.21552801]
[1641752605657,1.54145673,3168.5,3168.2,3.1]
[1641752606056,1.54145673,3168.5,3168.3,0.00227369]
[1641752608204,0.07888,3168.9,3168.3,0.00227369]
[1641752608405,0.07888,3168.9,3168.3,0.05245013]
[1641752608704,0.55320701,3169.4,3168.4,0.00170527]
[1641752608904,0.47432701,3169.4,3168.9,0.78887]
[1641752609304,1.37488939,3169.2,3168.9,0.78887]
[1641752609505,0.47432701,3169.4,3169.2,1.22205482]
[1641752611550,0.47432701,3169.4,3169.2,4.32205482]
[1641752611952,0.07888,3170.1,3169.3,1.0]
[1641752612153,3.71527475,3170.4,3169.3,1.0]
[1641752612352,0.00738951,3170.0,3169.3,1.0]
[1641752612656,0.00682109,3169.9,3169.3,1.0]
[1641752613050,0.00297475,3170.4,3169.8,1.16680846]
[1641752613051,1.43817426,3170.0,3169.8,1.16680846]
[1641752613251,1.43817426,3170.0,3169.6,0.7887]
[1641752614251,1.43817426,3170.0,3169.7,1.34174393]
[1641752614450,0.00909478,3170.3,3169.7,1.34174393]
[1641752614653,0.00909478,3170.3,3169.8,1.577299]
[1641752614851,0.00852636,3170.2,3169.7,2.91895393]
[1641752615305,0.00795793,3170.1,3169.7,2.91895393]
[1641752615706,0.00738951,3170.0,3169.7,2.91895393]
[1641752616100,0.00682109,3169.9,3169.7,2.91895393]
[1641752616500,0.07885,3171.0,3169.7,2.91895393]
[1641752616501,0.00625266,3169.8,3169.7,3.70758353]
[1641752616700,0.00625266,3169.8,3169.7,8.30758353]
[1641752617301,0.00625266,3169.8,3169.7,3.70758353]
[1641752618951,0.00625266,3169.8,3169.7,2.3658396]
[1641752619151,0.00625266,3169.8,3169.6,1.5772798]
[1641752619352,0.00625266,3169.8,3169.6,2.3659698]
[1641752619551,0.00568424,3169.7,3169.6,10.9159698]
[1641752619952,0.00568424,3169.7,3169.6,11.91595174]
[1641752621952,0.00568424,3169.7,3169.6,12.91595174]
[1641752622807,0.00568424,3169.7,3169.6,4.36595174]
[1641752624412,8.424e-05,3169.7,3169.6,7.41830717]
[1641752624610,0.07886,3170.8,3169.6,7.41830717]
[1641752624611,0.07886,3170.8,3169.8,0.05256723]
[1641752624811,0.07886,3170.8,3170.2,0.78842]
[1641752625015,0.00568423,3170.7,3170.3,2.67394166]
[1641752625411,0.00511581,3170.6,3170.4,1.0]
[1641752625611,0.00511581,3170.6,3170.5,12.12513301]
[1641752625814,0.07886,3170.8,3170.7,9.47382471]
[1641752626254,0.07886,3170.8,3170.7,2.27382471]
[1641752626651,0.07886,3170.8,3170.7,5.82382471]
[1641752626854,0.07886,3170.8,3170.7,8.38506507]
[1641752627051,0.07886,3170.8,3170.7,1.0]
[1641752627252,0.07886,3170.8,3170.7,1.78833]
[1641752627453,0.07886,3170.8,3170.6,1.0]
[1641752627653,0.07886,3170.8,3170.4,0.456]
[1641752627857,1.24302847,3171.0,3170.3,1.0]
[1641752627858,0.00568423,3170.7,3170.3,1.0]
[1641752628254,0.00511581,3170.6,3170.3,1.7885008]
[1641752628456,0.00511581,3170.6,3170.3,2.5769908]
[1641752628652,1.55374849,3170.5,3170.3,2.5769908]
[1641752629053,0.00397896,3170.4,3170.3,1.5769908]
[1641752629254,0.00397896,3170.4,3170.3,0.7885008]
[1641752630711,0.00397896,3170.4,3170.3,10.2270008]
[1641752631312,0.00397896,3170.4,3170.3,12.30312008]
[1641752631514,0.00397896,3170.4,3170.3,14.92048693]
[1641752632113,0.00397896,3170.4,3170.3,18.02048693]
[1641752632311,0.00397896,3170.4,3170.3,19.23983176]
[1641752634451,0.00397896,3170.4,3170.3,10.58983176]
[1641752634653,0.00397896,3170.4,3170.3,6.89634563]
[1641752634852,0.00397896,3170.4,3170.3,6.10784563]
[1641752636258,0.00397896,3170.4,3170.3,5.10784563]
[1641752636657,0.00397896,3170.4,3170.3,4.31934483]
[1641752637508,3.95397896,3170.4,3170.3,4.31934483]
[1641752637702,0.00397896,3170.4,3170.3,4.31934483]
[1641752638101,1.04792009,3170.4,3170.3,4.31934483]
[1641752638501,4.24792009,3170.4,3170.3,1.45477713]
[1641752638704,1.04792009,3170.4,3170.3,1.45477713]
[1641752639201,4.52251817,3170.4,3170.3,1.45477713]
[1641752639401,4.52251817,3170.4,3169.5,1.0]
[1641752639803,0.00341054,3170.3,3169.5,1.0]
[1641752640101,4.51853921,3170.4,3169.4,3.6258]
[1641752640102,0.00284212,3170.2,3169.4,3.6258]
[1641752640505,1.36097927,3169.8,3169.5,0.00113685]
[1641752640707,2.04457927,3169.8,3169.5,0.00113685]
[1641752641105,2.04457927,3169.8,3168.9,0.00454739]
[1641752641556,2.04457927,3169.8,3168.8,0.00511581]
[1641752642251,2.04457927,3169.8,3168.7,1.51992441]
[1641752642452,0.00511581,3169.7,3168.7,1.51992441]
[1641752642952,1.27395647,3169.0,3168.7,1.51992441]
[1641752643954,0.00511581,3169.7,3168.8,0.78887]
[1641752644160,0.00511581,3169.7,3168.8,4.90832527]
[1641752644356,0.00454738,3169.6,3168.8,1.5776244]
[1641752644556,0.00454738,3169.6,3168.9,1.0]
[1641752644756,0.00397896,3169.5,3168.8,2.5776244]
[1641752645008,0.00397896,3169.5,3168.8,1.8776244]
[1641752645204,1.34996792,3169.3,3168.9,1.0]
[1641752645603,1.34996792,3169.3,3169.1,12.66002316]
[1641752645604,0.00227369,3169.2,3169.1,12.66002316]
[1641752646006,0.00227369,3169.2,3169.1,14.26002316]
[1641752646405,0.00227369,3169.2,3169.1,16.96002316]
[1641752646609,0.00227369,3169.2,3169.1,18.18182316]
[1641752647008,0.00227369,3169.2,3169.1,17.41602316]
[1641752648006,8.2538,3170.9,3170.0,0.78856]
[1641752648007,7.91680844,3170.9,3170.0,0.78856]
[1641752648208,4.41698,3170.9,3170.0,0.78856]
[1641752648407,1.57883103,3170.8,3170.1,2.67773495]
[1641752648609,1.57883103,3170.8,3170.2,1.6]
[1641752648854,0.00852635,3170.7,3170.3,2.63194834]
[1641752649055,0.00852635,3170.7,3170.4,2.11599338]
[1641752649253,0.00795793,3170.6,3170.5,7.07885]
[1641752649457,0.00795793,3170.6,3170.4,3.28331338]
[1641752649655,0.00795793,3170.6,3170.4,3.58331338]
[1641752649855,0.00738951,3170.5,3170.4,3.58331338]
[1641752650054,0.00738951,3170.5,3170.4,6.16509012]
[1641752650257,0.00738951,3170.5,3170.4,9.41509012]
[1641752650454,0.00738951,3170.5,3170.4,3.58331338]
[1641752650856,0.00738951,3170.5,3170.4,6.08465627]
[1641752651053,0.00738951,3170.5,3170.4,3.58331338]
[1641752652253,0.00738951,3170.5,3170.4,6.68331338]
[1641752653119,0.00738951,3170.5,3170.4,2.46732]
[1641752653322,0.00738951,3170.5,3170.4,0.07885]
[1641752654522,1.32639194,3170.5,3170.4,0.07885]
[1641752655923,0.00738951,3170.5,3170.4,9.32529302]
[1641752656122,0.00738951,3170.5,3170.4,3.77529302]
[1641752656350,0.00738951,3170.5,3170.4,7.37529302]
[1641752656552,0.00738951,3170.5,3170.4,3.77529302]
[1641752656749,0.00738951,3170.5,3170.4,2.3885]
[1641752657356,0.00738951,3170.5,3170.4,1.6]
[1641752657553,0.00738951,3170.5,3170.4,0.6]
[1641752657753,0.00738951,3170.5,3170.4,0.3]
[1641752657954,0.00738951,3170.5,3170.3,2.3885252]
[1641752658453,0.00682108,3170.4,3170.3,0.7885252]
[1641752658853,0.00795793,3170.4,3170.3,11.4269652]
[1641752659858,0.00795793,3170.4,3170.3,13.0269652]
[1641752661913,0.00795793,3170.4,3170.3,13.1058152]
[1641752663014,0.00795793,3170.4,3170.3,3.2558152]
[1641752663213,0.00795793,3170.4,3170.3,7.3058152]
[1641752664051,1.3349649,3170.4,3170.3,7.3058152]
[1641752664452,0.00795793,3170.4,3170.3,7.3058152]
[1641752664853,0.00795793,3170.4,3170.3,9.81329323]
[1641752665552,0.00795793,3170.4,3170.3,7.3058152]
[1641752665752,0.00795793,3170.4,3170.3,7.2269652]
[1641752666353,0.00795793,3170.4,3170.3,9.74563343]
[1641752667152,0.00795793,3170.4,3170.3,7.2269652]
[1641752667610,0.00795793,3170.4,3170.3,9.74399821]
[1641752668103,0.00795793,3170.4,3170.3,7.2269652]
[1641752669105,0.00795793,3170.4,3170.3,10.4269652]
[1641752669304,0.00795793,3170.4,3170.3,9.75948582]
[1641752670806,0.00795793,3170.4,3170.3,7.2269652]
[1641752672451,0.00795793,3170.4,3170.3,9.75315899]
[1641752673153,0.00795793,3170.4,3170.3,15.50315899]
[1641752673351,0.00795793,3170.4,3170.3,9.75315899]
[1641752673956,0.00795793,3170.4,3170.3,13.00315899]
[1641752675113,0.00795793,3170.4,3170.3,9.75315899]
[1641752675908,0.00795793,3170.4,3170.3,16.05315899]
[1641752676311,0.00297474,3171.0,3170.4,13.35]
[1641752676511,0.00297474,3171.0,3170.7,0.78824]
[1641752676710,8.80214753,3171.9,3170.9,8.75]
[1641752676914,8.80214753,3171.9,3171.0,2.56922268]
[1641752677111,2.68465472,3171.7,3171.3,0.7882224]
[1641752677318,1.15670301,3171.6,3171.2,1.5764447]
[1641752677511,1.16068197,3171.6,3171.2,1.5764447]
[1641752677711,0.00341054,3171.5,3171.2,1.5764447]
[1641752678114,0.00284212,3171.4,3171.2,3.1528947]
[1641752678512,0.00227369,3171.3,3171.2,3.1528947]
[1641752678956,0.00227369,3171.3,3171.2,4.7528947]
[1641752679156,0.00227369,3171.3,3171.2,3.17645]
[1641752679355,0.00227369,3171.3,3171.2,3.1706148]
[1641752681157,0.00227369,3171.3,3171.1,2.3647325]
[1641752681360,0.00227369,3171.3,3170.9,0.78838]
[1641752681559,0.00170527,3171.2,3170.8,0.93006011]
[1641752681957,0.00113685,3171.1,3170.8,0.93006011]
[1641752682357,2.56272686,3171.0,3170.8,0.93006011]
[1641752682612,2.56272686,3171.0,3170.8,1.53006011]
[1641752683311,2.56272686,3171.0,3170.8,0.93006011]
[1641752683507,2.56272686,3171.0,3170.8,1.23006011]
[1641752684612,1.40457154,3171.0,3170.8,1.23006011]
[1641752685009,1.3035109,3171.0,3170.8,1.23006011]
[1641752685209,1.3035109,3171.0,3170.8,2.01850301]
[1641752685407,1.3035109,3171.0,3170.8,1.71850301]
[1641752685608,1.3035109,3171.0,3170.8,2.71850301]
[1641752685811,1.3035109,3171.0,3170.8,1.71850301]
[1641752686010,1.3035109,3171.0,3170.9,1.0]
[1641752686459,1.3035109,3171.0,3170.8,2.71850301]
[1641752686658,1.3035109,3171.0,3170.9,3.95]
[1641752686859,1.3035109,3171.0,3170.9,1.0]
[1641752687059,1.3035109,3171.0,3170.8,2.71850301]
[1641752687262,1.3035109,3171.0,3170.8,0.93006011]
[1641752687459,1.3035109,3171.0,3170.9,1.0]
[1641752687662,1.3035109,3171.0,3170.8,1.23006011]
[1641752689463,1.3035109,3171.0,3170.8,2.01851311]
[1641752689664,1.3035109,3171.0,3170.8,1.23006011]
[1641752693508,1.3035109,3171.0,3170.8,2.01852251]
[1641752693957,1.3035109,3171.0,3170.9,0.93003078]
[1641752694559,3.98840174,3171.0,3170.9,0.93003078]
[1641752696162,3.98840174,3171.0,3170.9,1.93003078]
[1641752697613,3.98840174,3171.0,3170.9,0.93003078]
[1641752698409,3.98840174,3171.0,3170.3,0.08053527]
[1641752698611,3.98840174,3171.0,3170.3,0.00170527]
[1641752698809,3.98840174,3171.0,3170.4,0.00284212]
[1641752699013,1.46720848,3170.4,3170.1,1.66549491]
[1641752699211,1.46720848,3170.4,3170.2,0.00397896]
[1641752700209,1.46720848,3170.4,3170.2,1.00397896]
[1641752700410,0.07885,3171.1,3170.2,0.30397896]
[1641752700610,5.93801232,3171.2,3170.3,0.00341054]
[1641752700810,5.14948232,3171.2,3170.3,0.00341054]
[1641752701109,0.00113685,3171.1,3170.3,0.00341054]
[1641752701355,0.00113685,3171.1,3170.3,0.79187054]
[1641752701562,2.68616346,3171.1,3170.4,0.3]
[1641752701756,1.22857448,3170.8,3170.6,1.34973217]
[1641752702155,1.22857448,3170.8,3170.7,0.00113685]
[1641752702755,3.91360109,3170.8,3170.7,0.00113685]
[1641752705605,3.91360109,3170.8,3170.6,0.00170527]
[1641752706407,3.91360109,3170.8,3170.3,0.00341054]
[1641752706607,3.91360109,3170.8,3170.4,0.07885]
[1641752707006,3.91360109,3170.8,3170.5,0.00227369]
[1641752707212,2.68502661,3170.7,3170.5,0.00227369]
[1641752710761,2.68502661,3170.7,3170.6,4.59121628]
[1641752710962,2.68502661,3170.7,3170.6,1.24121628]
[1641752711164,2.68502661,3170.7,3170.6,2.24292155]
[1641752711967,2.68502661,3170.7,3170.6,1.24292155]
[1641752712163,2.68502661,3170.7,3170.6,2.24292155]
[1641752712364,0.00113685,3171.1,3170.6,1.24292155]
[1641752712615,0.00113685,3171.1,3170.8,1.5768087]
[1641752713009,0.00113685,3171.1,3170.8,2.5768087]
[1641752713209,0.00113685,3171.1,3170.8,1.5768087]
[1641752713410,0.00113685,3171.1,3170.9,1.0]
[1641752713810,0.00113685,3171.1,3170.8,1.0]
[1641752714010,0.00113685,3171.1,3170.9,0.78829]
[1641752714712,0.00113685,3171.1,3170.9,0.7883787]
[1641752714914,0.00113685,3171.1,3170.7,0.00113685]